fUSD/lending_fUSD_20241107
["ID","MTS","AMOUNT","RATE_DAILY","PERIOD"]
[341526837,1730961076144,-500.0,0.00032147,4]
[341526838,1730961076154,-1417.3,0.00032147,4]
[341526839,1730961076163,-500.0,0.00032147,4]
[341526840,1730961076173,-500.0,0.00032147,4]
[341526841,1730961076183,-500.0,0.00032147,4]
[341526842,1730961076192,-944.64,0.00032147,4]
[341526843,1730961076202,-1101.72,0.00032147,4]
[341526844,1730961076212,-500.0,0.00032147,4]
[341526845,1730961076221,-525.27,0.00032147,4]
[341526846,1730961076230,-500.0,0.00032147,4]
[341526847,1730961076239,-500.0,0.00032147,4]
[341526848,1730961076248,-500.0,0.00032147,4]
[341526849,1730961076258,-500.0,0.00032147,4]
[341526850,1730961076268,-2391.27,0.00032147,4]
[341526851,1730961076279,-742.32,0.00032147,4]
[341526852,1730961076288,-500.0,0.00032147,4]
[341526853,1730961076298,-1345.45,0.00032147,4]
[341526854,1730961076308,-500.0,0.00032147,4]
[341526855,1730961076317,-711.47,0.00032147,4]
[341526856,1730961076329,-500.0,0.00032147,4]
[341526857,1730961076339,-500.0,0.00032147,4]
[341526858,1730961076348,-500.0,0.00032147,4]
[341526859,1730961076357,-500.0,0.00032147,4]
[341526860,1730961076367,-521.98218013,0.00032147,4]
[341526861,1730961076377,-500.0,0.00032147,4]
[341526862,1730961076387,-4222.21,0.00032147,4]
[341526863,1730961076398,-1267.94,0.00032147,4]
[341526864,1730961076408,-500.0,0.00032147,4]
[341526865,1730961076418,-500.0,0.00032147,4]
[341526866,1730961076427,-500.0,0.00032147,4]
[341526867,1730961076441,-500.0,0.00032147,4]
[341526868,1730961076452,-500.0,0.00032147,4]
[341526869,1730961076463,-500.0,0.00032147,4]
[341526870,1730961076476,-500.0,0.00032147,4]
[341526871,1730961076487,-500.0,0.00032147,4]
[341526872,1730961076496,-1558.71,0.00032147,4]
[341526873,1730961076507,-500.0,0.00032147,4]
[341526874,1730961076516,-500.0,0.00032147,4]
[341526875,1730961076528,-598.45,0.00032147,4]
[341526876,1730961076537,-2825.94,0.00032147,4]
[341526877,1730961076547,-508.46412898,0.00032147,4]
[341526878,1730961076557,-500.0,0.00032147,4]
[341526879,1730961076567,-500.0,0.00032147,4]
[341526880,1730961076577,-1164.27,0.00032147,4]
[341526881,1730961076586,-1240.15,0.00032147,4]
[341526882,1730961076596,-548.75656664,0.00032147,4]
[341526883,1730961076605,-500.0,0.00032147,4]
[341526884,1730961076615,-542.04541187,0.00032147,4]
[341526885,1730961076624,-500.0,0.00032147,4]
[341526886,1730961076634,-524.49179742,0.00032147,4]
[341526887,1730961076644,-3926.19,0.00032147,4]
[341526888,1730961076654,-1350.58,0.00032147,4]
[341526889,1730961076663,-505.49,0.00032147,4]
[341526890,1730961076673,-513.88166659,0.00032147,4]
[341526891,1730961076683,-500.0,0.00032147,4]
[341526892,1730961076692,-500.0,0.00032147,4]
[341526893,1730961076701,-2124.83,0.00032147,4]
[341526894,1730961076711,-500.0,0.00032147,4]
[341526895,1730961076720,-3366.87,0.00032147,4]
[341526896,1730961076730,-7719.24,0.00032147,4]
[341526897,1730961076739,-500.0,0.00032147,4]
[341526898,1730961076749,-500.0,0.00032147,4]
[341526899,1730961076759,-500.0,0.00032147,4]
[341526900,1730961076769,-500.0,0.00032147,4]
[341526901,1730961076779,-500.0,0.00032147,4]
[341526902,1730961076790,-685.11,0.00032147,4]
[341526903,1730961076800,-519.59,0.00032147,4]
[341526904,1730961076811,-500.0,0.00032147,4]
[341526905,1730961076821,-4163.98,0.00032147,4]
[341526906,1730961076831,-1312.11,0.00032147,4]
[341526907,1730961076840,-511.05652988,0.00032147,4]
[341526908,1730961076850,-500.0,0.00032147,4]
[341526909,1730961076860,-903.28,0.00032147,4]
[341526910,1730961076870,-500.0,0.00032147,4]
[341526911,1730961076879,-500.0,0.00032147,4]
[341526912,1730961076889,-628.07,0.00032147,4]
[341526913,1730961076898,-500.0,0.00032147,4]
[341526914,1730961076908,-500.0,0.00032147,4]
[341526915,1730961076917,-632.85309636,0.00032147,4]
[341526916,1730961076927,-3302.28,0.00032147,4]
[341526917,1730961076936,-279.50381542,0.00032147,4]
[341526918,1730961076945,-543.16,0.00032147,4]
[341526919,1730961076955,-1156.76,0.00032147,4]
[341526920,1730961076964,-500.0,0.00032147,4]
[341526921,1730961076974,-500.0,0.00032147,4]
[341526922,1730961076983,-500.0,0.00032147,4]
[341526923,1730961076993,-1244.12,0.00032147,4]
[341526924,1730961077003,-663.83,0.00032147,4]
[341526925,1730961077013,-1036.87,0.00032147,4]
[341526926,1730961077022,-777.47,0.00032147,4]
[341526927,1730961077032,-1093.19,0.0003219,2]
[341526928,1730961077041,-510.54,0.00032247,2]
[341526929,1730961077051,-150.42639476,0.00032247,7]
[341526930,1730961077060,-500.0,0.00032247,7]
[341526931,1730961077070,-500.0,0.00032247,7]
[341526932,1730961077080,-150.0,0.00032247,7]
[341526933,1730961077090,-150.0,0.00032247,7]
[341526934,1730961077099,-150.0,0.00032247,7]
[341526935,1730961077110,-150.0,0.00032247,7]
[341526936,1730961077120,-150.0,0.00032247,7]
[341526937,1730961077130,-500.0,0.00032247,7]
[341526938,1730961077141,-500.0,0.00032247,7]
[341526939,1730961077151,-1022.0,0.00032247,7]
[341526940,1730961077162,-500.0,0.00032247,4]
[341526941,1730961077173,-526.06,0.00032247,4]
[341526942,1730961077184,-500.0,0.00032247,4]
[341526943,1730961077196,-500.0,0.00032247,4]
[341526944,1730961077207,-740.89,0.00032247,4]
[341526945,1730961077221,-817.6,0.00032247,4]
[341526946,1730961077232,-500.0,0.00032247,4]
[341526947,1730961077242,-304.1031743,0.00032247,4]
[341526948,1730961077253,-1860.98,0.00032247,4]
[341526949,1730961077264,-500.0,0.00032247,4]
[341526950,1730961077279,-529.6,0.00032247,4]
[341526951,1730961077290,-500.0,0.00032247,4]
[341526952,1730961077301,-500.0,0.00032247,4]
[341526953,1730961077320,-1900.26,0.00032247,4]
[341526954,1730961077334,-500.0,0.00032247,4]
[341526955,1730961077345,-500.0,0.00032247,4]
[341526956,1730961077444,-800.43,0.00032247,4]
[341526957,1730961077456,-500.0,0.00032247,4]
[341526958,1730961077468,-3012.48,0.00032247,4]
[341526959,1730961077479,-500.0,0.00032247,4]
[341526960,1730961077490,-552.01,0.00032247,4]
[341526961,1730961077501,-500.0,0.00032247,4]
[341526962,1730961077513,-2594.41,0.00032247,4]
[341526963,1730961077525,-500.0,0.00032247,4]
[341526964,1730961077536,-987.67,0.00032247,4]
[341526965,1730961077547,-500.0,0.00032247,4]
[341526966,1730961077558,-2065.49,0.00032247,4]
[341526967,1730961077568,-500.0,0.00032247,4]
[341526968,1730961077577,-1422.48,0.00032247,4]
[341526969,1730961077587,-500.0,0.00032247,4]
[341526970,1730961077597,-500.0,0.00032247,4]
[341526971,1730961077606,-721.59,0.00032247,4]
[341526972,1730961077616,-500.0,0.00032247,4]
[341526973,1730961077626,-500.0,0.00032247,4]
[341526974,1730961077637,-1768.66,0.00032247,4]
[341526975,1730961077647,-500.0,0.00032247,4]
[341526976,1730961077657,-500.0,0.00032247,4]
[341526977,1730961077667,-500.0,0.00032247,4]
[341526978,1730961077676,-604.83674261,0.00032247,4]
[341526979,1730961077686,-397.23824654,0.00032247,4]
[341526980,1730961077695,-661.68,0.00032247,4]
[341526981,1730961077707,-500.0,0.00032247,4]
[341526982,1730961077717,-635.24412752,0.00032247,4]
[341526983,1730961077726,-3401.85,0.00032247,4]
[341526984,1730961077736,-1805.12,0.00032247,4]
[341526985,1730961077745,-500.0,0.00032247,4]
[341526986,1730961077755,-549.17990171,0.00032247,4]
[341526987,1730961077765,-590.96,0.00032247,4]
[341526988,1730961077788,-609.28562647,0.00032247,4]
[341526989,1730961077798,-500.0,0.00032247,4]
[341526990,1730961077808,-2135.26,0.00032247,4]
[341526991,1730961077817,-500.0,0.00032247,4]
[341526992,1730961077827,-500.0,0.00032247,4]
[341526993,1730961077836,-500.0,0.00032247,2]
[341526994,1730961077845,-500.0,0.00032247,4]
[341526995,1730961077854,-764.43,0.00032247,4]
[341526996,1730961077863,-500.0,0.00032247,4]
[341526997,1730961077872,-500.0,0.00032247,4]
[341526998,1730961077881,-500.0,0.00032247,4]
[341526999,1730961077890,-500.0,0.00032247,4]
[341527000,1730961077899,-500.0,0.00032247,4]
[341527001,1730961077909,-514.14940307,0.00032247,4]
[341527002,1730961077918,-1273.0,0.00032247,4]
[341527003,1730961077928,-521.77059465,0.00032247,4]
[341527004,1730961077937,-500.0,0.00032247,4]
[341527005,1730961077945,-500.0,0.00032247,4]
[341527006,1730961077955,-500.0,0.00032247,4]
[341527007,1730961077964,-500.0,0.00032247,4]
[341527008,1730961077973,-786.74,0.00032247,4]
[341527009,1730961077982,-500.0,0.00032247,4]
[341527010,1730961077992,-1693.32,0.00032247,4]
[341527011,1730961078001,-2713.35,0.00032247,4]
[341527012,1730961078011,-782.04,0.00032247,4]
[341527013,1730961078020,-1151.96,0.00032247,4]
[341527014,1730961078029,-500.0,0.00032247,7]
[341527015,1730961078039,-500.0,0.00032247,4]
[341527016,1730961078049,-3942.0,0.00032247,4]
[341527017,1730961078058,-500.0,0.00032247,4]
[341527018,1730961078067,-1764.5,0.00032247,4]
[341527019,1730961078076,-500.0,0.00032247,4]
[341527020,1730961078085,-500.0,0.00032247,4]
[341527021,1730961078095,-1898.75,0.00032247,4]
[341527022,1730961078104,-500.0,0.00032247,4]
[341527023,1730961078113,-500.0,0.00032247,4]
[341527024,1730961078122,-1116.94,0.00032247,4]
[341527025,1730961078132,-500.0,0.00032247,4]
[341527026,1730961078141,-500.0,0.00032247,4]
[341527027,1730961078149,-2514.13,0.00032247,4]
[341527028,1730961078159,-500.0,0.00032247,4]
[341527029,1730961078168,-357.54739472,0.00032247,4]
[341527030,1730961078177,-2193.23,0.00032247,4]
[341527031,1730961078187,-534.78289537,0.00032247,4]
[341527032,1730961078196,-633.98,0.00032247,4]
[341527033,1730961078205,-500.0,0.00032247,4]
[341527034,1730961078214,-500.0,0.00032247,4]
[341527035,1730961078223,-1586.37,0.00032247,4]
[341527036,1730961078231,-1600.46,0.00032247,4]
[341527037,1730961078240,-834.17,0.00032247,4]
[341527038,1730961078250,-500.0,0.00032247,4]
[341527039,1730961078259,-872.27,0.00032247,4]
[341527040,1730961078268,-540.48,0.00032247,4]
[341527041,1730961078285,-500.0,0.00032247,4]
[341527042,1730961078295,-1116.21,0.00032247,4]
[341527043,1730961078305,-1126.09,0.00032247,4]
[341527044,1730961078321,-1382.02,0.00032247,4]
[341527045,1730961078332,-500.0,0.00032247,4]
[341527046,1730961078342,-625.0,0.00032247,4]
[341527047,1730961078351,-1116.16,0.00032247,4]
[341527048,1730961078361,-500.0,0.00032247,4]
[341527049,1730961078371,-1361.06,0.00032247,4]
[341527050,1730961078381,-1808.87,0.00032247,4]
[341527051,1730961078390,-500.0,0.00032247,4]
[341527052,1730961078400,-1123.61,0.00032247,4]
[341527053,1730961078412,-781.91,0.00032247,4]
[341527054,1730961078422,-840.15,0.00032247,4]
[341527055,1730961078432,-500.0,0.00032247,4]
[341527056,1730961078442,-2056.42,0.00032247,4]
[341527057,1730961078451,-500.0,0.00032247,4]
[341527058,1730961078461,-596.59,0.00032247,4]
[341527059,1730961078470,-2937.64,0.00032247,4]
[341527060,1730961078479,-500.85167062,0.00032247,4]
[341527061,1730961078488,-500.0,0.00032247,4]
[341527062,1730961078499,-2149.94,0.00032247,4]
[341527063,1730961078508,-500.0,0.00032247,4]
[341527064,1730961078517,-500.0,0.00032247,4]
[341527065,1730961078528,-883.11,0.00032247,4]
[341527066,1730961078537,-613.97,0.00032247,4]
[341527067,1730961078546,-2157.62,0.00032247,4]
[341527068,1730961078555,-500.0,0.00032247,4]
[341527069,1730961078565,-500.0,0.00032247,4]
[341527070,1730961078574,-500.0,0.00032247,4]
[341527071,1730961078583,-1806.8,0.00032247,4]
[341527072,1730961078592,-1279.78,0.00032247,4]
[341527073,1730961078602,-500.0,0.00032247,4]
[341527074,1730961078612,-523.27345974,0.00032247,4]
[341527075,1730961078621,-1075.61,0.00032247,4]
[341527076,1730961078630,-500.0,0.00032247,4]
[341527077,1730961078640,-842.14,0.00032247,4]
[341527078,1730961078649,-596.99180851,0.00032247,4]
[341527079,1730961078659,-789.23,0.00032247,4]
[341527080,1730961078668,-500.0,0.00032247,4]
[341527081,1730961078677,-1656.61,0.00032247,4]
[341527082,1730961078687,-500.0,0.00032247,4]
[341527083,1730961078697,-685.68,0.00032247,4]
[341527084,1730961078708,-655.76,0.00032247,4]
[341527085,1730961078717,-500.0,0.00032247,4]
[341527086,1730961078726,-806.51,0.00032247,4]
[341527087,1730961078735,-607.5,0.00032247,4]
[341527088,1730961078745,-1953.82,0.00032247,4]
[341527089,1730961078754,-1374.45,0.00032247,4]
[341527090,1730961078764,-500.0,0.00032247,4]
[341527091,1730961078778,-500.0,0.00032247,4]
[341527092,1730961078788,-500.0,0.00032247,4]
[341527093,1730961078799,-500.0,0.00032247,4]
[341527094,1730961078809,-2697.43,0.00032247,4]
[341527095,1730961078819,-500.0,0.00032247,4]
[341527096,1730961078829,-500.0,0.00032247,4]
[341527097,1730961078838,-1515.44,0.00032247,4]
[341527098,1730961078848,-2589.89,0.00032247,4]
[341527099,1730961078857,-1611.34,0.00032247,4]
[341527100,1730961078867,-965.21,0.00032247,4]
[341527101,1730961078876,-1356.06,0.00032247,4]
[341527102,1730961078886,-1966.89,0.00032247,4]
[341527103,1730961078896,-577.6,0.00032247,4]
[341527104,1730961078905,-697.74,0.00032247,4]
[341527105,1730961078914,-500.0,0.00032247,4]
[341527106,1730961078924,-500.0,0.00032247,4]
[341527107,1730961078933,-500.0,0.00032247,4]
[341527108,1730961078943,-1941.61,0.00032247,4]
[341527109,1730961078953,-1697.68,0.00032247,4]
[341527110,1730961078963,-745.4,0.00032247,4]
[341527111,1730961078972,-1203.42,0.00032247,4]
[341527112,1730961078982,-500.0,0.00032247,4]
[341527113,1730961078991,-500.0,0.00032247,4]
[341527114,1730961079000,-1968.66,0.00032247,4]
[341527115,1730961079010,-855.27,0.00032247,4]
[341527116,1730961079019,-500.0,0.00032247,4]
[341527117,1730961079033,-500.0,0.00032247,4]
[341527118,1730961079042,-500.0,0.00032247,4]
[341527119,1730961079053,-500.0,0.00032247,4]
[341527120,1730961079062,-500.0,0.00032247,4]
[341527121,1730961079070,-500.0,0.00032247,4]
[341527122,1730961079079,-671.79,0.00032247,4]
[341527123,1730961079089,-2237.53,0.00032247,4]
[341527124,1730961079098,-1406.41,0.00032247,4]
[341527125,1730961079107,-500.0,0.00032247,4]
[341527126,1730961079116,-500.0,0.00032247,4]
[341527127,1730961079126,-500.0,0.00032247,4]
[341527128,1730961079135,-716.48,0.00032247,4]
[341527129,1730961079144,-1522.17,0.00032247,4]
[341527130,1730961079154,-500.0,0.00032247,4]
[341527131,1730961079163,-1742.67,0.00032247,4]
[341527132,1730961079172,-500.0,0.00032247,4]
[341527133,1730961079182,-500.0,0.00032247,4]
[341527134,1730961079191,-1719.89,0.00032247,4]
[341527135,1730961079200,-1411.76,0.00032247,4]
[341527136,1730961079211,-1085.94,0.00032247,4]
[341527137,1730961079220,-500.0,0.00032247,4]
[341527138,1730961079229,-500.0,0.00032247,4]
[341527139,1730961079238,-1819.93,0.00032247,4]
[341527140,1730961079247,-1422.77,0.00032247,4]
[341527141,1730961079257,-528.83,0.00032247,4]
[341527142,1730961079266,-543.66,0.00032247,4]
[341527143,1730961079278,-5162.75,0.00032247,4]
[341527144,1730961079287,-1520.83,0.00032247,4]
[341527145,1730961079297,-390.61,0.00032247,4]
[341527146,1730961079306,-500.0,0.00032247,4]
[341527147,1730961079316,-720.74,0.00032247,4]
[341527148,1730961079326,-500.0,0.00032247,4]
[341527149,1730961079339,-1098.86,0.00032247,4]
[341527150,1730961079348,-2307.67,0.00032247,4]
[341527151,1730961079357,-500.0,0.00032247,4]
[341527152,1730961079368,-323.76553835,0.00032247,4]
[341527153,1730961079377,-500.0,0.00032247,4]
[341527154,1730961079386,-1329.58,0.00032247,4]
[341527155,1730961079395,-531.97,0.00032247,4]
[341527156,1730961079406,-1302.3,0.00032247,4]
[341527157,1730961079415,-524.0,0.00032247,4]
[341527158,1730961079425,-659.77,0.00032247,4]
[341527159,1730961079434,-500.0,0.00032247,4]
[341527160,1730961079444,-3013.75,0.00032247,4]
[341527161,1730961079453,-1016.65,0.00032247,4]
[341527162,1730961079463,-1773.58,0.00032247,4]
[341527163,1730961079473,-500.0,0.00032247,4]
[341527164,1730961079483,-500.0,0.00032247,4]
[341527165,1730961079492,-500.0,0.00032247,4]
[341527166,1730961079502,-2307.25,0.00032247,4]
[341527167,1730961079512,-930.04,0.00032247,4]
[341527168,1730961079525,-500.0,0.00032247,4]
[341527169,1730961079535,-2436.89,0.00032247,4]
[341527170,1730961079545,-500.0,0.00032247,4]
[341527171,1730961079555,-834.97,0.00032247,4]
[341527172,1730961079564,-500.0,0.00032247,4]
[341527173,1730961079574,-500.0,0.00032247,4]
[341527174,1730961079584,-500.0,0.00032247,4]
[341527175,1730961079594,-3080.87,0.00032247,4]
[341527176,1730961079603,-554.47,0.00032247,4]
[341527177,1730961079612,-500.0,0.00032247,4]
[341527178,1730961079622,-1630.1,0.00032247,4]
[341527179,1730961079632,-687.72,0.00032247,4]
[341527180,1730961079641,-500.0,0.00032247,4]
[341527181,1730961079650,-579.98,0.00032247,4]
[341527182,1730961079660,-762.46,0.00032247,4]
[341527183,1730961079670,-640.51,0.00032247,4]
[341527184,1730961079680,-2000.0,0.00032247,4]
[341527185,1730961079690,-981.46,0.00032247,4]
[341527186,1730961079699,-1167.28,0.00032247,4]
[341527187,1730961079709,-624.06,0.00032247,4]
[341527188,1730961079718,-652.65,0.00032247,4]
[341527189,1730961079728,-1296.92,0.00032247,4]
[341527190,1730961079737,-980.35,0.00032247,4]
[341527191,1730961079747,-555.92,0.00032247,4]
[341527192,1730961079756,-1367.89,0.00032247,4]
[341527193,1730961079766,-500.0,0.00032247,4]
[341527194,1730961079777,-661.31,0.00032247,4]
[341527195,1730961079787,-585.09,0.00032247,4]
[341527196,1730961079797,-500.0,0.00032247,4]
[341527197,1730961079806,-732.3,0.00032247,4]
[341527198,1730961079815,-500.0,0.00032247,4]
[341527199,1730961079825,-540.87837396,0.00032247,4]
[341527200,1730961079834,-500.0,0.00032247,4]
[341527201,1730961079843,-551.35,0.00032247,4]
[341527202,1730961079852,-500.0,0.00032247,4]
[341527203,1730961079860,-500.0,0.00032247,4]
[341527204,1730961079870,-1428.61,0.00032247,4]
[341527205,1730961079879,-500.0,0.00032247,4]
[341527206,1730961079889,-500.0,0.00032247,4]
[341527207,1730961079899,-656.76,0.00032247,4]
[341527208,1730961079908,-500.0,0.00032247,4]
[341527209,1730961079917,-500.0,0.00032247,4]
[341527210,1730961079926,-2476.26,0.00032247,4]
[341527211,1730961079936,-500.0,0.00032247,4]
[341527212,1730961079945,-500.0,0.00032247,4]
[341527213,1730961079955,-1041.29,0.00032247,4]
[341527214,1730961079964,-754.03,0.00032247,4]
[341527215,1730961079973,-2328.8,0.00032247,4]
[341527216,1730961079982,-565.8211045,0.00032247,2]
[341527217,1730961079991,-8010.25253069,0.00032274,15]
[341527218,1730961080000,-241.33841465,0.00032281,2]
[341527219,1730961080010,-250.0,0.000323,4]
[341527220,1730961080019,-365.3,0.000323,4]
[341527221,1730961080030,-1843.06,0.00032319,4]
[341527222,1730961080039,-1536.44,0.00032319,4]
[341527223,1730961080048,-778.4,0.00032319,4]
[341527224,1730961080058,-2764.11,0.00032319,4]
[341527225,1730961080068,-734.27,0.00032319,4]
[341527226,1730961080077,-4657.75,0.00032319,4]
[341527227,1730961080087,-500.0,0.00032319,4]
[341527228,1730961080098,-500.0,0.00032319,4]
[341527229,1730961080107,-2300.46,0.00032319,4]
[341527230,1730961080116,-500.0,0.00032319,4]
[341527231,1730961080125,-759.92,0.00032319,4]
[341527232,1730961080135,-588.8,0.00032319,4]
[341527233,1730961080145,-500.0,0.00032319,4]
[341527234,1730961080154,-598.5,0.00032319,4]
[341527235,1730961080163,-500.0,0.00032319,4]
[341527236,1730961080172,-889.07,0.00032319,4]
[341527237,1730961080182,-500.0,0.00032319,4]
[341527238,1730961080191,-500.0,0.00032319,4]
[341527239,1730961080200,-1954.93,0.00032319,4]
[341527240,1730961080209,-502.35290615,0.00032319,4]
[341527241,1730961080218,-2000.0,0.00032329,2]
[341527242,1730961080226,-176.96,0.00032332,120]
[341527243,1730961080235,-220.0,0.00032332,2]
[341527244,1730961080245,-275.293,0.00032332,2]
[341527245,1730961080254,-283.963,0.00032332,2]
[341527246,1730961080264,-200.0,0.00032332,2]
[341527247,1730961080276,-150.0,0.00032332,2]
[341527248,1730961080285,-165.0,0.00032332,2]
[341527249,1730961080295,-150.0,0.00032332,2]
[341527250,1730961080304,-150.0,0.00032332,2]
[341527251,1730961080313,-249.637,0.00032332,2]
[341527252,1730961080325,-282.457,0.00032332,2]
[341527253,1730961080334,-152.246,0.00032332,2]
[341527254,1730961080344,-152.997,0.00032332,2]
[341527255,1730961080353,-500.0,0.00032347,4]
[341527256,1730961080364,-1798.66,0.00032347,4]
[341527257,1730961080373,-616.56,0.00032347,4]
[341527258,1730961080383,-1736.99,0.00032347,4]
[341527259,1730961080392,-1565.03,0.00032347,4]
[341527260,1730961080401,-500.0,0.00032347,4]
[341527261,1730961080412,-596.19,0.00032347,4]
[341527262,1730961080422,-1179.75,0.00032347,4]
[341527263,1730961080431,-500.0,0.00032347,4]
[341527264,1730961080440,-1201.3,0.00032347,4]
[341527265,1730961080449,-1267.37,0.00032347,4]
[341527266,1730961080458,-500.0,0.00032347,4]
[341527267,1730961080467,-765.72,0.00032347,4]
[341527268,1730961080476,-1186.51,0.00032347,4]
[341527269,1730961080486,-581.31,0.00032347,4]
[341527270,1730961080494,-500.0,0.00032347,4]
[341527271,1730961080502,-1924.65,0.00032347,4]
[341527272,1730961080512,-2038.78,0.00032347,4]
[341527273,1730961080521,-500.0,0.00032347,4]
[341527274,1730961080533,-2484.08,0.00032347,4]
[341527275,1730961080542,-500.0,0.00032347,4]
[341527276,1730961080552,-2014.76,0.00032347,4]
[341527277,1730961080561,-1107.13,0.00032347,4]
[341527278,1730961080571,-500.0,0.00032347,4]
[341527279,1730961080580,-500.0,0.00032347,4]
[341527280,1730961080591,-500.0,0.00032347,4]
[341527281,1730961080600,-523.25,0.00032347,4]
[341527282,1730961080609,-500.0,0.00032347,4]
[341527283,1730961080619,-500.0,0.00032347,4]
[341527284,1730961080627,-812.78,0.00032347,4]
[341527285,1730961080638,-784.79,0.00032347,4]
[341527286,1730961080647,-1284.84,0.00032347,4]
[341527287,1730961080657,-1108.97,0.00032347,4]
[341527288,1730961080667,-998.86,0.00032347,4]
[341527289,1730961080677,-730.27,0.00032347,4]
[341527290,1730961080686,-1614.42,0.00032347,4]
[341527291,1730961080696,-3369.6,0.00032399,4]
[341527292,1730961080706,-400.0,0.000324,120]
[341527293,1730961080716,-151.0,0.000324,7]
[341527294,1730961080726,-151.0,0.000324,7]
[341527295,1730961080736,-151.0,0.000324,7]
[341527296,1730961080745,-151.0,0.000324,7]
[341527297,1730961080756,-151.0,0.000324,7]
[341527298,1730961080765,-1291.960214,0.000324,7]
[341527299,1730961080778,-1291.960214,0.000324,7]
[341527300,1730961080788,-348.545858,0.000324,7]
[341527301,1730961080798,-348.545858,0.000324,7]
[341527302,1730961080808,-151.0,0.000324,7]
[341527303,1730961080818,-151.239118,0.000324,7]
[341527304,1730961080827,-151.239118,0.000324,7]
[341527305,1730961080837,-151.0,0.000324,7]
[341527306,1730961080847,-256.050764,0.000324,7]
[341527307,1730961080857,-535.84,0.00032419,4]
[341527308,1730961080867,-1652.58,0.00032419,4]
[341527309,1730961080876,-3222.5,0.00032419,4]
[341527310,1730961080886,-761.9,0.00032419,4]
[341527311,1730961080897,-1280.16,0.00032419,4]
[341527312,1730961080907,-3972.2,0.00032419,4]
[341527313,1730961080917,-1871.91,0.00032419,4]
[341527314,1730961080927,-500.0,0.00032419,4]
[341527315,1730961080937,-1253.68,0.00032419,4]
[341527316,1730961080947,-623.53,0.00032419,4]
[341527317,1730961080957,-834.19,0.00032419,4]
[341527318,1730961080966,-1497.88,0.00032419,4]
[341527319,1730961080976,-890.29,0.00032419,4]
[341527320,1730961080986,-686.57,0.0003242,4]
[341527321,1730961080995,-155.931552,0.0003242,4]
[341527322,1730961081005,-490.483093,0.0003242,4]
[341527323,1730961081015,-157.950212,0.0003242,4]
[341527324,1730961081026,-716.43,0.0003242,4]
[341527325,1730961081036,-744.89,0.0003242,4]
[341527326,1730961081046,-12992.06,0.0003242,4]
[341527327,1730961081057,-953.15,0.0003242,4]
[341527328,1730961081067,-500.0,0.0003242,4]
[341527329,1730961081077,-305.034082,0.0003242,4]
[341527330,1730961081087,-2501.71,0.0003242,4]
[341527331,1730961081098,-1992.28,0.0003242,4]
[341527332,1730961081108,-9233.39,0.0003242,4]
[341527333,1730961081118,-1256.1,0.0003242,4]
[341527334,1730961081128,-1525.28,0.0003242,4]
[341527335,1730961081138,-1354.52,0.0003242,4]
[341527336,1730961081148,-607.76,0.0003242,4]